Workbook

Sheet Nákupní seznam
M1: =výpočty!M9 -> MLÉČNÉ VÝROBKY CELKEM
B2: Nákupní seznam
C3: Hotovo | D3: POLOŽKA | E3: OBCHOD | F3: KATEGORIE | G3: MNŽ. | H3: JEDN. | I3: JEDN. CENA | J3: CELKEM | K3: KOMENTÁŘ | M3: =výpočty!L9 -> 368
C4: 1 | D4: Pomeranče | E4: Potraviny | F4: Plodiny | G4: 2 | H4: kg | I4: 29.90 Kč | J4: =IFERROR(Seznam[MNŽ.]*Seznam[JEDN. CENA],"") -> 59.80 Kč | M4: =výpočty!M8 -> PLODINY CELKEM
D5: Jablka | E5: Ovocný sad | F5: Plodiny | G5: 3 | H5: kg | I5: 19.90 Kč | J5: =IFERROR(Seznam[MNŽ.]*Seznam[JEDN. CENA],"") -> 59.70 Kč | K5: Použít kupón | M5: =výpočty!L8 -> 449
D6: Banány | E6: Potraviny | F6: Plodiny | G6: 1 | H6: trs | I6: 39.90 Kč | J6: =IFERROR(Seznam[MNŽ.]*Seznam[JEDN. CENA],"") -> 39.90 Kč
D7: Hlávkový salát | E7: Trh | F7: Plodiny | G7: 2 | H7: hlávky | I7: 22.90 Kč | J7: =IFERROR(Seznam[MNŽ.]*Seznam[JEDN. CENA],"") -> 45.80 Kč | M7: =výpočty!M7 -> MASO CELKEM
D8: Rajčata | E8: Trh | F8: Plodiny | G8: 4 | H8: kg | I8: 34.90 Kč | J8: =IFERROR(Seznam[MNŽ.]*Seznam[JEDN. CENA],"") -> 139.60 Kč | M8: =výpočty!L7 -> 799
D9: Dýně | E9: Trh | F9: Plodiny | G9: 2 | H9: kusy | I9: 15.00 Kč | J9: =IFERROR(Seznam[MNŽ.]*Seznam[JEDN. CENA],"") -> 30.00 Kč
D10: Celer | E10: Potraviny | F10: Plodiny | G10: 2 | H10: kusy | I10: 19.90 Kč | J10: =IFERROR(Seznam[MNŽ.]*Seznam[JEDN. CENA],"") -> 39.80 Kč | M10: =výpočty!M6 -> RYBY/MOŘSKÉ PLODY CELKEM
D11: Okurka | E11: Trh | F11: Plodiny | G11: 1 | H11: kg | I11: 22.90 Kč | J11: =IFERROR(Seznam[MNŽ.]*Seznam[JEDN. CENA],"") -> 22.90 Kč | M11: =výpočty!L6 -> 1089
D12: Houby | E12: Potraviny | F12: Plodiny | G12: 0.5 | H12: kg | I12: 22.50 Kč | J12: =IFERROR(Seznam[MNŽ.]*Seznam[JEDN. CENA],"") -> 11.25 Kč | K12: Velké žampiony
D13: Mléko | E13: Doručení domů | F13: Mléčné výrobky | G13: 2 | H13: l | I13: 39.90 Kč | J13: =IFERROR(Seznam[MNŽ.]*Seznam[JEDN. CENA],"") -> 79.80 Kč | M13: =výpočty!M3 -> OSTATNÍ CELKEM
D14: Sýr | E14: Doručení domů | F14: Mléčné výrobky | G14: 1 | H14: kg | I14: 99.90 Kč | J14: =IFERROR(Seznam[MNŽ.]*Seznam[JEDN. CENA],"") -> 99.90 Kč | K14: Různé tvrdé sýry | M14: =výpočty!L3 -> 0
D15: Vejce | E15: Doručení domů | F15: Mléčné výrobky | G15: 2 | H15: tucty | I15: 35.00 Kč | J15: =IFERROR(Seznam[MNŽ.]*Seznam[JEDN. CENA],"") -> 70.00 Kč
D16: Tvaroh | E16: Doručení domů | F16: Mléčné výrobky | G16: 1 | H16: 500 g | I16: 38.90 Kč | J16: =IFERROR(Seznam[MNŽ.]*Seznam[JEDN. CENA],"") -> 38.90 Kč | M16: =výpočty!M4 -> NÁKUP CELKEM
D17: Kysaná smetana | E17: Doručení domů | F17: Mléčné výrobky | G17: 1 | H17: 250 g | I17: 29.90 Kč | J17: =IFERROR(Seznam[MNŽ.]*Seznam[JEDN. CENA],"") -> 29.90 Kč | M17: =NákupníSeznamCelkem -> 2706
D18: Jogurt | E18: Potraviny | F18: Mléčné výrobky | G18: 1 | H18: 500 g | I18: 49.90 Kč | J18: =IFERROR(Seznam[MNŽ.]*Seznam[JEDN. CENA],"") -> 49.90 Kč | K18: Řecký s medem
D19: Hovězí maso | E19: Trh | F19: Maso | G19: 10 | H19: kg | I19: 79.90 Kč | J19: =IFERROR(Seznam[MNŽ.]*Seznam[JEDN. CENA],"") -> 799.00 Kč | K19: Steaky balené ve slanině
D20: Losos | E20: Rybí trh | F20: Ryby/mořské plody | G20: 6 | H20: kg | I20: 89.90 Kč | J20: =IFERROR(Seznam[MNŽ.]*Seznam[JEDN. CENA],"") -> 539.40 Kč
D21: Krabí maso | E21: Rybí trh | F21: Ryby/mořské plody | G21: 5 | H21: kg | I21: 109.90 Kč | J21: =IFERROR(Seznam[MNŽ.]*Seznam[JEDN. CENA],"") -> 549.50 Kč

Sheet výpočty (hidden)
A1: *** Tento list by měl zůstat skrytý. ***
K3: =SUM(Seznam[CELKEM])-SUM(K6:K9) -> 0.00 Kč | L3: =ROUND(K3,0) -> 0 Kč | M3: OSTATNÍ CELKEM
L4: =ROUNDUP(SUM(Seznam[CELKEM]),0) -> 2,706 Kč | M4: NÁKUP CELKEM
E6: =IFERROR(INDEX(Seznam[KATEGORIE],MATCH(,COUNTIF($E$5:E5,Seznam[KATEGORIE]),)),"") -> Plodiny | F6: =SUMIFS(Seznam[CELKEM],Seznam[KATEGORIE],E6) -> 448.75 | G6: =F6+ROW()/1000000 -> 448.750006 | H6: =LARGE($G$6:$G$21,1) -> 1088.900009 | I6: =MATCH(H6,$G$6:$G$21,0) -> 4 | J6: =INDEX($E$6:$E$21,$I6) -> Ryby/mořské plody | K6: =INDEX($F$6:$F$21,$I6) -> 1,088.90 Kč | L6: =ROUND(K6,0) -> 1,089 Kč | M6: =UPPER(J6) & " CELKEM" -> RYBY/MOŘSKÉ PLODY CELKEM
E7: =IFERROR(INDEX(Seznam[KATEGORIE],MATCH(,COUNTIF($E$5:E6,Seznam[KATEGORIE]),)),"") -> Mléčné výrobky | F7: =SUMIFS(Seznam[CELKEM],Seznam[KATEGORIE],E7) -> 368.4 | G7: =F7+ROW()/1000000 -> 368.400007 | H7: =LARGE($G$6:$G$21,2) -> 799.000008 | I7: =MATCH(H7,$G$6:$G$21,0) -> 3 | J7: =INDEX($E$6:$E$21,$I7) -> Maso | K7: =INDEX($F$6:$F$21,$I7) -> 799.00 Kč | L7: =ROUND(K7,0) -> 799 Kč | M7: =UPPER(J7) & " CELKEM" -> MASO CELKEM
E8: =IFERROR(INDEX(Seznam[KATEGORIE],MATCH(,COUNTIF($E$5:E7,Seznam[KATEGORIE]),)),"") -> Maso | F8: =SUMIFS(Seznam[CELKEM],Seznam[KATEGORIE],E8) -> 799 | G8: 799.000008 | H8: =LARGE($G$6:$G$21,3) -> 448.750006 | I8: =MATCH(H8,$G$6:$G$21,0) -> 1 | J8: =INDEX($E$6:$E$21,$I8) -> Plodiny | K8: =INDEX($F$6:$F$21,$I8) -> 448.75 Kč | L8: =ROUND(K8,0) -> 449 Kč | M8: =UPPER(J8) & " CELKEM" -> PLODINY CELKEM
E9: =IFERROR(INDEX(Seznam[KATEGORIE],MATCH(,COUNTIF($E$5:E8,Seznam[KATEGORIE]),)),"") -> Ryby/mořské plody | F9: =SUMIFS(Seznam[CELKEM],Seznam[KATEGORIE],E9) -> 1088.9 | G9: 1088.900009 | H9: =LARGE($G$6:$G$21,4) -> 368.400007 | I9: =MATCH(H9,$G$6:$G$21,0) -> 2 | J9: =INDEX($E$6:$E$21,$I9) -> Mléčné výrobky | K9: =INDEX($F$6:$F$21,$I9) -> 368.40 Kč | L9: =ROUND(K9,0) -> 368 Kč | M9: =UPPER(J9) & " CELKEM" -> MLÉČNÉ VÝROBKY CELKEM
E10: =IFERROR(INDEX(Seznam[KATEGORIE],MATCH(,COUNTIF($E$5:E9,Seznam[KATEGORIE]),)),"") ->  | F10: =SUMIFS(Seznam[CELKEM],Seznam[KATEGORIE],E10) -> 0 | G10: 1e-05
E11: =IFERROR(INDEX(Seznam[KATEGORIE],MATCH(,COUNTIF($E$5:E10,Seznam[KATEGORIE]),)),"") ->  | F11: =SUMIFS(Seznam[CELKEM],Seznam[KATEGORIE],E11) -> 0 | G11: 1.1e-05
E12: =IFERROR(INDEX(Seznam[KATEGORIE],MATCH(,COUNTIF($E$5:E11,Seznam[KATEGORIE]),)),"") ->  | F12: =SUMIFS(Seznam[CELKEM],Seznam[KATEGORIE],E12) -> 0 | G12: 1.2e-05
E13: =IFERROR(INDEX(Seznam[KATEGORIE],MATCH(,COUNTIF($E$5:E12,Seznam[KATEGORIE]),)),"") ->  | F13: =SUMIFS(Seznam[CELKEM],Seznam[KATEGORIE],E13) -> 0 | G13: 1.3e-05
E14: =IFERROR(INDEX(Seznam[KATEGORIE],MATCH(,COUNTIF($E$5:E13,Seznam[KATEGORIE]),)),"") ->  | F14: =SUMIFS(Seznam[CELKEM],Seznam[KATEGORIE],E14) -> 0 | G14: 1.4e-05
E15: =IFERROR(INDEX(Seznam[KATEGORIE],MATCH(,COUNTIF($E$5:E14,Seznam[KATEGORIE]),)),"") ->  | F15: =SUMIFS(Seznam[CELKEM],Seznam[KATEGORIE],E15) -> 0 | G15: 1.5e-05
E16: =IFERROR(INDEX(Seznam[KATEGORIE],MATCH(,COUNTIF($E$5:E15,Seznam[KATEGORIE]),)),"") ->  | F16: =SUMIFS(Seznam[CELKEM],Seznam[KATEGORIE],E16) -> 0 | G16: 1.6e-05
E17: =IFERROR(INDEX(Seznam[KATEGORIE],MATCH(,COUNTIF($E$5:E16,Seznam[KATEGORIE]),)),"") ->  | F17: =SUMIFS(Seznam[CELKEM],Seznam[KATEGORIE],E17) -> 0 | G17: 1.7e-05
E18: =IFERROR(INDEX(Seznam[KATEGORIE],MATCH(,COUNTIF($E$5:E17,Seznam[KATEGORIE]),)),"") ->  | F18: =SUMIFS(Seznam[CELKEM],Seznam[KATEGORIE],E18) -> 0 | G18: 1.8e-05
E19: =IFERROR(INDEX(Seznam[KATEGORIE],MATCH(,COUNTIF($E$5:E18,Seznam[KATEGORIE]),)),"") ->  | F19: =SUMIFS(Seznam[CELKEM],Seznam[KATEGORIE],E19) -> 0 | G19: 1.9e-05
E20: =IFERROR(INDEX(Seznam[KATEGORIE],MATCH(,COUNTIF($E$5:E19,Seznam[KATEGORIE]),)),"") ->  | F20: =SUMIFS(Seznam[CELKEM],Seznam[KATEGORIE],E20) -> 0 | G20: 2e-05
E21: =IFERROR(INDEX(Seznam[KATEGORIE],MATCH(,COUNTIF($E$5:E20,Seznam[KATEGORIE]),)),"") ->  | F21: =SUMIFS(Seznam[CELKEM],Seznam[KATEGORIE],E21) -> 0 | G21: 2.1e-05
